bitfinex-derivatives/quotes_SOLF0:USTF0_20250311
["timestamp","ask_amount","ask_price","bid_price","bid_amount"]
[1741706140074,66.5,123.65,123.53,1.6190399]
[1741706140274,35.85226295,123.66,123.52,70.6481]
[1741706140476,0.05449085,123.6,123.58,0.05458157]
[1741706140780,35.85226295,123.62,123.53,1.6190399]
[1741706140983,35.85226295,123.66,123.58,0.05779216]
[1741706141282,66.44,123.65,123.53,1.6190399]
[1741706141482,8.0939,123.59,123.52,70.6481]
[1741706141682,35.85226295,123.61,123.52,4.1481]
[1741706141887,35.85226295,123.61,123.56,8.095]
[1741706142183,0.05449085,123.58,123.5,191.0]
[1741706142481,35.85226295,123.58,123.49,137.51132319]
[1741706143081,35.85226295,123.58,123.5,8.0991]
[1741706143282,35.85226295,123.58,123.49,137.51132319]
[1741706143485,35.85226295,123.6,123.49,137.51132319]
[1741706143681,0.05899954,123.55,123.52,0.05906029]
[1741706143879,35.85226295,123.68,123.54,35.85226295]
[1741706144180,35.85226295,123.75,123.61,35.85226295]
[1741706144384,12.3928,123.77,123.64,35.85226295]
[1741706144885,35.85226295,123.73,123.63,4.3]
[1741706145179,0.05756842,123.72,123.69,0.06119078]
[1741706145378,35.85226295,123.7,123.57,4.3]
[1741706145572,4.14,123.69,123.57,40.15226295]
[1741706145775,66.14,123.76,123.6,35.85226295]
[1741706146077,70.28,123.76,123.65,5.62936728]
[1741706146284,35.85226295,123.71,123.65,5.62936728]
[1741706146479,35.90622661,123.72,123.69,0.05686327]
[1741706146692,35.90622661,123.72,123.65,5.62936728]
[1741706146693,71.7045259,123.72,123.65,5.62936728]
[1741706146881,35.85226295,123.72,123.65,5.62936728]
[1741706147185,35.85226295,123.69,123.65,5.62936728]
[1741706147392,35.85226295,123.66,123.64,31.25107103]
[1741706147579,8.0896,123.65,123.64,31.25107103]
[1741706147983,35.91396395,123.66,123.63,83.33618942]
[1741706148384,71.7662269,123.66,123.63,83.33618942]
[1741706148578,71.7662269,123.66,123.63,70.17018942]
[1741706148782,35.91396395,123.66,123.63,70.17018942]
[1741706148977,0.061701,123.66,123.63,70.17018942]
[1741706149294,0.061701,123.66,123.64,8.09]
[1741706149487,0.061701,123.66,123.63,0.05209574]
[1741706150380,35.85226295,123.72,123.63,0.05209574]
[1741706150583,266.94,123.76,123.62,35.85226295]
[1741706150785,8.0844,123.73,123.63,4.0704]
[1741706150990,266.94,123.76,123.63,4.0704]
[1741706151296,266.94,123.76,123.65,35.85226295]
[1741706151481,212.14492852,123.67,123.66,65.72]
[1741706151681,185.79612852,123.67,123.66,65.72]
[1741706151882,185.79612852,123.67,123.66,73.8089]
[1741706152086,89.19342852,123.67,123.66,76.2289]
[1741706152292,22.37552852,123.67,123.66,76.2289]
[1741706152483,339.8569493,123.68,123.67,8.0882]
[1741706153085,339.8569493,123.68,123.65,0.05918094]
[1741706154385,0.05708812,123.68,123.65,0.05918094]
[1741706154993,35.90935107,123.68,123.58,65.4]
[1741706155187,4.3678,123.69,123.58,65.4]
[1741706155494,4.3678,123.69,123.59,35.85226295]
[1741706156085,0.05270386,123.65,123.63,0.05739752]
[1741706156286,3.86e-06,123.65,123.63,65.39739752]
[1741706156482,3.86e-06,123.65,123.64,8.0902]
[1741706156887,3.86e-06,123.65,123.63,73.48759752]
[1741706157198,3.86e-06,123.65,123.63,0.05739752]
[1741706160789,8.0917,123.62,123.54,65.26]
[1741706160987,4.2996,123.64,123.54,65.26]
[1741706161184,4.2996,123.64,123.55,35.85226295]
[1741706161595,4.2996,123.64,123.54,101.11226295]
[1741706161891,4.2996,123.64,123.51,209.34649738]
[1741706161892,35.90480794,123.6,123.58,0.05927893]
[1741706162095,65.1,123.59,123.51,18.34649738]
[1741706162289,65.1,123.59,123.43,125.18893561]
[1741706162290,35.85226295,123.54,123.43,125.18893561]
[1741706162489,35.85226295,123.51,123.43,125.18893561]
[1741706162689,35.85226295,123.51,123.43,190.24893561]
[1741706162887,43.95146295,123.51,123.45,8.1021]
[1741706163097,35.85226295,123.51,123.43,190.24893561]
[1741706163288,0.06097383,123.49,123.47,0.05438631]
[1741706163589,35.91323678,123.49,123.43,125.18893561]
[1741706163795,35.85226295,123.58,123.51,8.0982]
[1741706163997,4.2851,123.6,123.49,65.1]
[1741706164294,35.85226295,123.55,123.45,65.1]
[1741706164487,35.85226295,123.55,123.45,65.18]
[1741706164689,40.13736295,123.6,123.46,35.85226295]
[1741706164690,35.85226295,123.57,123.46,35.85226295]
[1741706164885,40.13736295,123.6,123.49,35.85226295]
[1741706165084,40.13736295,123.6,123.5,65.31637109]
[1741706165286,40.13736295,123.6,123.5,65.26]
[1741706165892,4.1103,123.59,123.51,35.85226295]
[1741706166193,4.1103,123.65,123.57,35.85226295]
[1741706166490,4.1103,123.65,123.6,8.0924]
[1741706166694,0.05663526,123.62,123.58,65.3]
[1741706166989,0.05663526,123.62,123.6,0.05980312]
[1741706167494,0.05663526,123.62,123.51,65.24]
[1741706167692,35.85226295,123.6,123.51,65.24]
[1741706167989,35.85226295,123.6,123.48,35.85226295]
[1741706168187,35.85226295,123.54,123.43,316.18893561]
[1741706168387,35.85226295,123.54,123.43,125.18893561]
[1741706168781,0.0592054,123.5,123.43,125.18893561]
[1741706168986,0.0592054,123.5,123.47,0.06016711]
[1741706169188,35.85226295,123.48,123.43,125.18893561]
[1741706170092,8.1027,123.45,123.43,125.18893561]
[1741706170290,35.85226295,123.45,123.43,23.52901683]
[1741706170588,0.05994725,123.45,123.43,25.100635]
[1741706170789,0.05994725,123.45,123.43,16.996635]
[1741706171299,0.05994725,123.45,123.44,8.1033]
[1741706171498,0.05994725,123.45,123.43,16.996635]
[1741706172086,0.05994725,123.45,123.43,0.05291817]
[1741706172389,38.3522102,123.45,123.43,1.817e-05]
[1741706172590,8.1066,123.4,123.33,8.11]
[1741706172791,35.85226295,123.4,123.3,101.11226295]
[1741706173291,332.3,123.41,123.26,83.67610191]
[1741706173497,35.85226295,123.34,123.26,83.67610191]
[1741706173683,0.05992082,123.35,123.32,0.05809414]
[1741706173891,35.85226295,123.37,123.26,83.67610191]
[1741706174093,0.05429236,123.35,123.32,0.06198786]
[1741706175787,9.236e-05,123.35,123.32,35.91425081]
[1741706176099,47.00161646,123.5,123.32,390.35425081]
[1741706176294,47.00161646,123.5,123.38,35.85226295]
[1741706176500,35.85226295,123.47,123.39,65.1]
[1741706176700,35.85226295,123.47,123.37,65.1]
[1741706177101,35.85226295,123.44,123.34,267.26]
[1741706177294,0.05149647,123.43,123.41,0.06021332]
[1741706177598,47.00161646,123.5,123.4,65.1]
[1741706177801,35.85226295,123.5,123.41,0.05318309]
[1741706178000,35.85226295,123.47,123.36,65.18]
[1741706178201,35.85226295,123.44,123.36,65.18]
[1741706178596,35.85226295,123.41,123.32,65.14]
[1741706178903,35.85226295,123.38,123.28,65.12]
[1741706179092,35.90795896,123.38,123.35,0.05827297]
[1741706179292,8.1088,123.36,123.28,65.12]
[1741706179491,8.1088,123.36,123.35,0.05446069]
[1741706179796,35.85226295,123.38,123.28,65.12]
[1741706179997,0.05140664,123.37,123.34,0.05878631]
[1741706180205,44.00846295,123.4,123.34,0.05878631]
[1741706180404,0.05842971,123.37,123.34,0.05878631]
[1741706180903,0.05959984,123.37,123.34,0.05159453]
[1741706181107,35.91186279,123.37,123.34,0.05159453]
[1741706181603,35.85226295,123.36,123.22,458.3]
[1741706181811,35.85226295,123.33,123.22,191.0]
[1741706182294,64.8,123.35,123.24,35.85226295]
[1741706182501,35.85226295,123.36,123.24,35.85226295]
[1741706182804,0.05791533,123.31,123.29,0.06096902]
[1741706183001,39.88086295,123.38,123.29,0.06096902]
[1741706183204,4.1249,123.39,123.29,0.06096902]
[1741706183405,4.1249,123.39,123.28,73.6916]
[1741706183600,35.85226295,123.36,123.24,291.83226295]
[1741706184100,35.85226295,123.33,123.24,64.98]
[1741706184299,35.85226295,123.3,123.29,0.06047205]
[1741706184504,0.0560925,123.31,123.3,8.1125]
[1741706184706,271.4686,123.35,123.25,64.96]
[1741706184905,0.05385375,123.32,123.29,0.05879247]
[1741706185401,35.85226295,123.3,123.19,4.2794]
[1741706185601,35.85226295,123.3,123.26,8.1151]
[1741706185803,35.85226295,123.3,123.19,40.13166295]
[1741706186605,0.05762041,123.26,123.23,0.06105858]
[1741706188610,4.3353,123.34,123.23,35.91332153]
[1741706188799,35.85226295,123.33,123.23,35.91332153]
[1741706189001,35.85226295,123.33,123.23,35.85226295]
[1741706189208,4.3353,123.34,123.23,35.85226295]
[1741706189505,4.3353,123.34,123.2,64.86]
[1741706189807,0.06112831,123.3,123.27,0.06127012]
[1741706190908,35.85226295,123.28,123.16,68.9022]
[1741706191412,64.78,123.29,123.17,35.85226295]
[1741706191806,35.85226295,123.3,123.17,35.85226295]
[1741706192001,0.06006076,123.25,123.22,0.05539514]
[1741706192510,0.06006076,123.25,123.22,0.05272419]
[1741706194102,35.91232371,123.25,123.15,4.2097]
[1741706194311,35.85226295,123.22,123.15,4.2097]
[1741706194813,303.47226295,123.25,123.15,4.2097]
[1741706195009,303.47226295,123.25,123.16,64.5]
[1741706195204,0.05790042,123.21,123.19,0.05376714]
[1741706195504,35.85226295,123.24,123.15,4.2097]
[1741706195711,0.05221184,123.21,123.19,0.05299776]
[1741706195905,35.90447479,123.21,123.19,0.05299776]
[1741706196106,35.90447479,123.21,123.1,4.1475]
[1741706196310,35.85226295,123.19,123.1,4.1475]
[1741706196511,4.0263,123.23,123.13,35.85226295]
[1741706196708,4.0263,123.23,123.13,64.3]
[1741706197205,8.118,123.22,123.18,8.1201]
[1741706197405,0.05496253,123.19,123.17,0.05706162]
[1741706197812,0.05496253,123.19,123.1,4.1475]
[1741706198111,35.85226295,123.2,123.1,4.1475]
[1741706198809,35.85226295,123.17,123.08,4.2033]
[1741706199017,0.05879009,123.16,123.14,0.05697786]
[1741706199318,0.05879009,123.16,123.14,0.05489688]
[1741706200403,35.91105304,123.16,123.05,67.9985]
[1741706200602,35.85226295,123.14,123.05,4.1585]
[1741706200802,35.85226295,123.14,123.04,8.3033]
[1741706201213,99.57226295,123.14,123.04,4.1781]
[1741706201517,35.85226295,123.11,123.01,67.9901]
[1741706201707,35.85226295,123.14,123.03,35.85226295]
[1741706201908,0.0567722,123.07,123.05,0.05799698]
[1741706202108,35.85226295,123.14,123.05,0.05799698]
[1741706202304,39.88926295,123.18,123.06,35.85226295]
[1741706202509,39.88926295,123.18,123.08,0.05954316]
[1741706202706,39.88926295,123.18,123.07,63.84]
[1741706202903,39.88926295,123.18,123.1,8.1255]
[1741706203110,35.85226295,123.15,123.07,63.84]
[1741706203414,8.121,123.18,123.13,8.1233]
[1741706203616,0.05288662,123.12,123.1,0.05555772]
[1741706204018,35.85226295,123.15,123.07,63.84]
[1741706204316,0.05729029,123.12,123.1,0.05335032]
[1741706205113,8.125,123.11,123.1,0.05335032]
[1741706205314,0.05729029,123.12,123.1,0.05335032]
[1741706205515,35.90955324,123.12,123.1,0.05335032]
[1741706205913,0.05729029,123.12,123.1,0.05335032]
[1741706206616,8.18209029,123.12,123.1,0.05335032]
[1741706206814,0.05729029,123.12,123.1,0.05335032]
[1741706208019,35.85226295,123.11,123.1,5.032e-05]
[1741706208520,43.97726295,123.11,123.1,5.032e-05]
[1741706208919,8.125,123.11,123.1,5.032e-05]
[1741706209619,0.05729029,123.12,123.1,5.032e-05]
[1741706210718,8.18209029,123.12,123.1,5.032e-05]
[1741706211121,0.05729029,123.12,123.1,5.032e-05]
[1741706211319,0.05729029,123.12,123.11,8.125]
[1741706212325,4.3298,123.2,123.1,35.85231327]
[1741706212517,4.3298,123.2,123.1,5.032e-05]
[1741706212713,4.3298,123.2,123.09,4.2579]
[1741706212919,44.59741405,123.24,123.12,35.85226295]
[1741706213123,44.59741405,123.24,123.16,35.85226295]
[1741706213321,52.71441405,123.24,123.2,8.119]
[1741706213522,0.05473307,123.19,123.17,0.06205234]
[1741706213728,44.59741405,123.24,123.14,4.0787]
[1741706214222,0.05818293,123.19,123.17,0.05304589]
[1741706214427,276.508,123.28,123.17,98.72530884]
[1741706214631,35.85226295,123.27,123.17,98.67226295]
[1741706214924,8.1156,123.26,123.21,8.118]
[1741706215121,35.85226295,123.27,123.17,62.82]
[1741706215323,35.85226295,123.25,123.17,62.82]
[1741706215522,8.1154,123.26,123.21,8.1183]
[1741706215724,0.05170866,123.22,123.21,8.1183]
[1741706216027,8.118,123.22,123.17,62.82]
[1741706216323,0.0601661,123.23,123.2,0.06056633]
[1741706216529,8.118,123.22,123.2,0.06056633]
[1741706216732,0.0601661,123.23,123.2,0.06056633]
[1741706217030,35.85226295,123.21,123.12,191.0]
[1741706217217,35.85226295,123.19,123.1,66.692]
[1741706217419,35.85226295,123.22,123.1,102.54426295]
[1741706217624,8.1186,123.21,123.16,8.1211]
[1741706217829,62.46,123.24,123.13,35.85226295]
[1741706218023,35.85226295,123.21,123.11,40.21886295]
[1741706218223,0.05244963,123.2,123.17,0.05987144]
[1741706218623,35.85226295,123.23,123.17,0.05987144]
[1741706218928,35.85226295,123.19,123.17,7.144e-05]
[1741706219320,0.0623013,123.2,123.17,7.144e-05]
[1741706219727,8.1204,123.18,123.17,7.144e-05]
[1741706220126,35.85226295,123.19,123.17,7.144e-05]
[1741706220330,0.0623013,123.2,123.17,7.144e-05]
[1741706220628,35.85226295,123.18,123.17,7.144e-05]
[1741706221122,0.0623013,123.2,123.17,7.144e-05]
[1741706221327,8.1204,123.18,123.17,7.144e-05]
[1741706221523,43.97266295,123.18,123.17,7.144e-05]
[1741706221923,0.0623013,123.2,123.17,7.144e-05]
[1741706222230,35.85226295,123.18,123.17,7.144e-05]
[1741706222532,8.1235,123.14,123.09,4.2579]
[1741706222737,35.85226295,123.15,123.07,267.92]
[1741706222928,35.85226295,123.15,123.06,8.128]
[1741706223231,35.85226295,123.15,123.04,4.3065]
[1741706223435,62.12,123.16,123.1,8.1255]
[1741706223635,0.05710255,123.11,123.08,0.05834777]
[1741706223931,0.05710255,123.11,123.08,0.05186012]
[1741706223932,0.05270114,123.11,123.08,0.05186012]
[1741706224137,8.1264,123.09,123.08,0.05186012]
[1741706224521,0.05270114,123.11,123.08,0.05186012]
[1741706224729,8.1264,123.09,123.08,0.05186012]
[1741706224936,8.1264,123.09,123.08,6.012e-05]
[1741706225931,10.5664,123.09,123.08,6.012e-05]
[1741706226133,10.5664,123.09,123.02,1.62575191]
[1741706226134,2.44,123.09,123.02,1.62575191]
[1741706226325,35.85226295,123.08,123.02,1.62575191]
[1741706226839,4.1831,123.12,123.02,1.62575191]
[1741706227230,0.05864359,123.08,123.06,0.05379165]
[1741706227929,43.97996295,123.07,123.06,9.165e-05]
[1741706228633,0.05864359,123.08,123.06,9.165e-05]
[1741706228935,35.91090654,123.08,123.06,9.165e-05]
[1741706229231,8.1277,123.07,123.06,9.165e-05]
[1741706229627,8.18594359,123.08,123.06,9.165e-05]
[1741706229833,0.05864359,123.08,123.06,9.165e-05]
[1741706230136,80.449677,123.15,123.07,8.1277]
[1741706230329,44.59741405,123.15,123.05,61.64]
[1741706230632,44.59741405,123.15,123.06,35.85226295]
[1741706230834,11.14935351,123.14,123.06,35.85226295]
[1741706231229,11.14935351,123.14,123.08,35.85226295]
[1741706231429,11.14935351,123.14,123.09,0.05617006]
[1741706231633,35.85226295,123.13,123.09,0.05617006]
[1741706231936,8.1257,123.1,123.09,0.05617006]
[1741706232331,15.43145351,123.14,123.09,0.05617006]
[1741706232524,0.05897691,123.13,123.09,0.05617006]
[1741706232933,11.14935351,123.14,123.09,0.05617006]
[1741706233133,35.85226295,123.16,123.09,0.05617006]
[1741706233333,43.97796295,123.1,123.09,0.05617006]
[1741706233639,35.85226295,123.1,123.0,4.0214]
[1741706233835,8.1248,123.12,123.08,8.1266]
[1741706234136,97.21226295,123.16,123.05,35.85226295]
[1741706234330,8.1249,123.12,123.08,8.127]
[1741706234533,61.36,123.16,123.04,61.32]
[1741706234534,97.21226295,123.16,123.04,61.32]
[1741706234731,0.06177067,123.11,123.09,0.05337271]
[1741706235041,35.85226295,123.16,123.06,191.0]
[1741706235431,40.13436295,123.2,123.08,35.85226295]
[1741706235742,35.85226295,123.22,123.11,35.85226295]
[1741706236033,0.05959852,123.18,123.11,61.28]
[1741706236337,0.05959852,123.18,123.15,0.05715347]
[1741706236834,44.59741405,123.22,123.16,61.2]
[1741706237040,44.59741405,123.22,123.21,8.1184]
[1741706237236,89.19482812,123.23,123.21,61.12]
[1741706237437,12.58021053,123.23,123.21,61.12]
[1741706238136,12.64155723,123.23,123.21,0.05814988]
[1741706238939,0.0613467,123.23,123.21,0.05814988]
[1741706239135,0.0613467,123.23,123.22,8.1178]
[1741706239342,40.10146295,123.31,123.21,0.05814988]
[1741706239642,35.85226295,123.25,123.17,191.0]
[1741706239941,35.85226295,123.29,123.17,226.85226295]
[1741706240142,35.85226295,123.29,123.17,191.0]
[1741706240340,35.85226295,123.25,123.17,199.1206]
[1741706240636,35.85226295,123.25,123.13,252.08]
[1741706240637,35.85226295,123.21,123.13,252.08]
[1741706240839,35.85226295,123.21,123.13,61.08]
[1741706241340,48.09486295,123.24,123.13,61.08]
[1741706241539,48.09486295,123.24,123.13,287.93226295]
[1741706241837,0.05626503,123.2,123.17,0.05138399]
[1741706242041,0.05626503,123.2,123.17,8.17188399]
[1741706242237,0.05626503,123.2,123.17,0.05138399]
[1741706242641,35.85226295,123.29,123.18,60.84]
[1741706243036,35.85226295,123.27,123.18,60.84]
[1741706243237,35.85226295,123.27,123.19,8.1196]
[1741706243437,35.85226295,123.27,123.18,60.84]
[1741706243639,48.45016295,123.31,123.19,35.85226295]
[1741706243838,0.05147106,123.24,123.21,0.06117957]
[1741706244035,7.106e-05,123.24,123.19,226.85226295]
[1741706244240,48.45016295,123.31,123.19,226.85226295]
[1741706244437,35.85226295,123.33,123.23,35.85226295]
[1741706244739,8.1097,123.35,123.25,35.85226295]
[1741706244937,13.0768,123.36,123.25,35.85226295]
[1741706245135,13.0768,123.36,123.24,60.76]
[1741706245343,0.05230751,123.31,123.29,0.0622823]
[1741706245538,35.85226295,123.32,123.29,0.0622823]
[1741706245746,8.1125,123.3,123.29,0.0622823]
[1741706245938,0.05554454,123.31,123.29,0.0622823]
[1741706246335,4.454e-05,123.31,123.3,8.1125]
[1741706246537,4.454e-05,123.31,123.29,60.6622823]
[1741706246738,4.454e-05,123.31,123.29,0.0622823]
[1741706246944,8.1125,123.3,123.29,0.0622823]
[1741706247145,8.1125,123.3,123.29,8.23e-05]
[1741706247346,4.454e-05,123.31,123.29,8.23e-05]
[1741706247949,8.1125,123.3,123.29,8.23e-05]
[1741706248139,4.454e-05,123.31,123.29,8.23e-05]
[1741706248940,8.1125,123.3,123.29,8.23e-05]
[1741706249942,35.85230749,123.31,123.29,8.23e-05]
[1741706250349,8.1125,123.3,123.29,8.23e-05]
[1741706251640,4.454e-05,123.31,123.29,8.23e-05]
[1741706252146,8.1125,123.3,123.29,8.23e-05]
[1741706253243,4.454e-05,123.31,123.29,8.23e-05]
[1741706253847,4.454e-05,123.31,123.3,8.1125]
[1741706254243,4.454e-05,123.31,123.29,8.23e-05]
[1741706254452,8.11204454,123.31,123.29,8.23e-05]
[1741706254649,4.454e-05,123.31,123.29,8.23e-05]
[1741706254946,4.454e-05,123.31,123.3,8.1125]
[1741706255751,4.454e-05,123.31,123.3,10.5525]
[1741706256247,4.454e-05,123.31,123.3,46.40476295]
[1741706256450,4.454e-05,123.31,123.3,8.1125]
[1741706256956,4.454e-05,123.31,123.29,8.23e-05]
[1741706257647,35.85226295,123.3,123.19,192.6235084]
[1741706257950,35.85226295,123.29,123.19,192.6235084]
[1741706258255,8.1141,123.28,123.19,192.6235084]
[1741706258447,35.85226295,123.29,123.19,192.6235084]
[1741706258646,8.1132,123.29,123.19,228.47577135]
[1741706258847,0.05243112,123.25,123.23,0.05587116]
[1741706259054,3.112e-05,123.25,123.24,8.1165]
[1741706259349,35.85226295,123.32,123.23,59.2]
[1741706260151,35.85226295,123.3,123.23,59.2]
[1741706260347,0.05667602,123.29,123.26,0.05362226]
[1741706260547,35.85226295,123.3,123.24,8.116]
[1741706260748,0.05553017,123.29,123.26,0.05624484]
[1741706260949,35.85226295,123.28,123.19,1.6235084]
[1741706261152,35.85226295,123.3,123.18,59.0]
[1741706261352,35.85226295,123.32,123.19,35.85226295]
[1741706261555,35.85226295,123.3,123.19,191.0]
[1741706261748,35.85226295,123.28,123.21,8.1182]
[1741706262052,0.06158003,123.26,123.23,0.05681722]
[1741706263755,0.06158003,123.26,123.23,58.65681722]
[1741706264644,0.06158003,123.26,123.23,0.05681722]
[1741706264857,35.91384298,123.26,123.23,0.05681722]
[1741706265050,35.85226295,123.24,123.15,191.0]
[1741706265251,35.85226295,123.2,123.11,191.0]
[1741706266056,35.85226295,123.18,123.1,58.44]
[1741706266251,0.05841346,123.17,123.14,0.05719925]
[1741706266655,8.1222,123.16,123.14,0.05719925]
[1741706266851,35.85226295,123.16,123.14,0.05719925]
[1741706267052,35.85226295,123.16,123.09,115.34249285]
[1741706267451,8.1239,123.13,123.09,115.34249285]
[1741706267850,8.1244,123.12,123.09,115.34249285]
[1741706268050,35.85226295,123.14,123.09,115.34249285]
[1741706268353,8.1249,123.12,123.09,115.34249285]
[1741706268560,0.05556756,123.12,123.09,115.39920265]
[1741706269362,6.756e-05,123.12,123.09,115.39920265]
[1741706269656,3.9701,123.17,123.09,115.39920265]
[1741706270055,3.9701,123.17,123.08,35.85226295]
[1741706270459,8.1235,123.14,123.1,8.1257]
[1741706270658,3.9701,123.17,123.1,8.1257]
[1741706270853,0.05462612,123.13,123.11,0.06087796]
[1741706271053,0.05462612,123.13,123.12,8.1244]
[1741706271559,35.85226295,123.22,123.12,38.29226295]
[1741706271757,4.3866,123.23,123.13,58.0]
[1741706272160,35.85226295,123.22,123.13,58.0]
[1741706272459,35.85226295,123.2,123.13,58.0]
[1741706272659,0.0514034,123.19,123.16,0.05737989]
[1741706272855,35.85226295,123.18,123.09,58.0]
[1741706273054,8.123,123.15,123.11,8.125]
[1741706273260,35.85226295,123.18,123.09,58.0]
[1741706274255,0.05850542,123.15,123.12,0.0585519]
[1741706274661,35.85226295,123.18,123.09,58.0]
[1741706274850,0.05975966,123.15,123.12,0.05648873]
[1741706275759,0.05975966,123.15,123.12,8.18058873]
[1741706276257,0.05975966,123.15,123.12,0.05648873]
[1741706276756,8.18255966,123.15,123.12,0.05648873]
[1741706277061,0.05975966,123.15,123.12,0.05648873]
[1741706278363,8.18265966,123.15,123.12,0.05648873]
[1741706278563,0.05975966,123.15,123.12,0.05648873]
[1741706279559,8.1237,123.13,123.12,0.05648873]
[1741706279765,35.85226295,123.13,123.05,58.0]
[1741706280064,4.334,123.12,123.05,58.0]
[1741706280464,8.7611,123.14,123.11,8.1245]
[1741706280465,16.8846,123.14,123.11,8.1245]
[1741706280663,4.334,123.17,123.1,58.02]
[1741706280965,0.0598167,123.14,123.11,0.05584272]
[1741706282666,0.0598167,123.14,123.13,8.1237]
[1741706283067,0.0598167,123.14,123.11,0.05584272]
[1741706284875,0.0598167,123.14,123.13,8.1237]
[1741706285264,0.0598167,123.14,123.11,0.05584272]
[1741706286369,35.91207965,123.14,123.11,0.05584272]
[1741706286674,0.0598167,123.14,123.11,0.05584272]
[1741706287872,0.0598167,123.14,123.13,8.1237]
[1741706288072,0.0598167,123.14,123.11,58.07584272]
[1741706288973,0.0598167,123.14,123.13,8.1237]
[1741706289575,1.67e-05,123.14,123.13,8.1237]
[1741706290074,1.67e-05,123.14,123.12,8.1241]
[1741706290274,1.67e-05,123.14,123.11,58.07584272]
[1741706290574,1.67e-05,123.14,123.11,0.05584272]
[1741706290769,1.67e-05,123.14,123.13,8.1237]
[1741706291874,1.67e-05,123.14,123.11,0.05584272]
[1741706292674,1.67e-05,123.14,123.02,445.1616]
[1741706292675,35.85227965,123.14,123.03,0.1727]
[1741706292871,35.85226295,123.12,123.02,303.75226295]
[1741706293072,1.67e-05,123.14,123.02,325.92]
[1741706293073,35.85226295,123.1,123.02,325.92]
[1741706293273,35.85226295,123.1,123.03,8.1302]
[1741706293274,4.3008,123.09,123.03,8.1302]
[1741706293474,35.85226295,123.08,123.01,191.0]
[1741706293775,4.3008,123.09,123.01,191.0]
[1741706294076,0.05314176,123.06,123.05,8.1285]
[1741706294674,0.05314176,123.06,123.05,8.129]
[1741706295067,0.05314176,123.06,123.05,66.129]
[1741706295068,4.176e-05,123.06,123.05,66.129]
[1741706295469,4.176e-05,123.06,123.05,68.569]
[1741706295674,3.9696,123.15,123.13,8.1232]
[1741706295874,8.3251,123.19,123.11,35.85226295]
[1741706296071,8.3251,123.19,123.12,58.02]
[1741706296277,8.3251,123.19,123.11,36.02496295]
[1741706296278,8.1215,123.17,123.09,35.85226295]
[1741706296475,8.3251,123.19,123.1,58.02]
[1741706296678,35.85226295,123.18,123.1,58.02]
[1741706296874,0.05412489,123.16,123.13,0.05464527]
[1741706297075,35.85226295,123.14,123.06,249.02]
[1741706297276,35.85226295,123.1,123.01,0.1727]
[1741706297683,35.85226295,123.12,123.03,8.1301]
[1741706297981,35.85226295,123.1,123.0,249.02]
[1741706298382,0.05878957,123.06,123.04,0.06084963]
[1741706299287,35.91105252,123.06,122.99,163.35306635]
[1741706299474,4.3784,123.05,122.99,163.35306635]
[1741706300484,0.05722815,123.03,123.01,0.0602401]
[1741706300684,0.05722815,123.03,122.99,163.35306635]
[1741706300887,0.05722815,123.03,122.95,58.0]
[1741706301189,8.1297,123.04,122.95,93.85226295]
[1741706301479,4.3784,123.05,122.95,93.85226295]
[1741706301686,4.3784,123.05,122.97,35.85226295]
[1741706301888,93.85226295,123.1,122.99,35.91033929]
[1741706302086,97.92056295,123.1,123.03,8.1299]
[1741706302290,97.92056295,123.1,123.0,58.02]
[1741706303085,35.91248505,123.06,123.04,0.05968506]
[1741706303393,8.1302,123.04,122.99,8.1327]
[1741706303686,35.85226295,123.06,122.96,58.02]
[1741706304282,35.85226295,123.06,122.98,8.1332]
[1741706304483,0.06013339,123.02,123.0,0.05751506]
[1741706305085,0.06013339,123.02,122.92,191.0]
[1741706305086,35.91239634,123.02,122.92,58.02]
[1741706305291,35.85226295,123.0,122.92,58.02]
[1741706306190,0.05454648,122.97,122.95,0.05596241]
[1741706306583,0.05454648,122.97,122.9,89.68639094]
[1741706306982,0.05454648,122.97,122.9,31.66639094]
[1741706307389,0.05454648,122.97,122.89,58.02]
[1741706307691,43.98746295,122.96,122.85,125.55865389]
[1741706307895,0.06089811,122.94,122.92,0.06043296]
[1741706308089,0.06089811,122.94,122.86,0.1665]
[1741706308292,8.1367,122.94,122.92,0.05128461]
[1741706308597,35.90608195,122.94,122.85,31.66639094]
[1741706308787,35.85226295,122.92,122.85,31.66639094]
[1741706308988,35.85226295,122.9,122.85,31.66639094]
[1741706309189,8.1409,122.88,122.85,31.66639094]
[1741706309398,35.85226295,122.92,122.85,31.66639094]
[1741706309993,0.05438823,122.9,122.87,8.19947269]
[1741706310195,0.05438823,122.9,122.87,0.05887269]
[1741706311197,35.85226295,122.88,122.77,268.18]